lending/lending_fUSD_20260328
["ID","MTS","AMOUNT","RATE_DAILY","PERIOD"]
[418974809,1774702234553,-329.47,0.00013712,2]
[418974810,1774702234563,-351.24,0.00013728,2]
[418974811,1774702234573,-8543.2232948,0.00013729,2]
[418974812,1774702234582,-500.0,0.00013729,2]
[418974813,1774702234592,-500.0,0.00013729,2]
[418974814,1774702234601,-500.0,0.00013729,2]
[418974815,1774702234611,-500.0,0.00013729,2]
[418974816,1774702234620,-500.0,0.00013729,2]
[418974817,1774702234629,-500.0,0.00013729,2]
[418974818,1774702234639,-594.34436232,0.00013729,2]
[418974819,1774702234648,-500.0,0.00013729,2]
[418974820,1774702234657,-500.0,0.00013729,2]
[418974821,1774702234667,-500.0,0.00013729,2]
[418974822,1774702234676,-500.0,0.00013729,2]
[418974823,1774702234685,-500.0,0.00013729,2]
[418974824,1774702234695,-500.0,0.00013729,2]
[418974825,1774702234704,-500.0,0.00013729,2]
[418974826,1774702234713,-500.0,0.00013729,2]
[418974827,1774702234723,-284.94410162,0.00013729,2]
[418974828,1774702234733,-500.0,0.00013729,2]
[418974829,1774702234742,-500.0,0.00013729,2]
[418974830,1774702234751,-500.0,0.00013738,2]
[418974831,1774702234761,-796.97,0.00013772,2]
[418974832,1774702234770,-500.0,0.00013784,2]
[418974833,1774702234780,-408.99847685,0.00013823,2]
[418974834,1774702234790,-500.0,0.00013839,2]
[418974835,1774702234799,-500.0,0.00013894,2]
[418974836,1774702234808,-497.0641286,0.00013908,2]
[418974837,1774702234819,-1074.17927304,0.00013908,2]
[418974838,1774702234829,-500.0,0.00013949,2]
[418974839,1774702234838,-164.72,0.00013968,2]
[418974840,1774702234848,-150.0,0.00013973,2]
[418974841,1774702234857,-150.0,0.00013973,2]
[418974842,1774702234866,-150.0,0.00013973,2]
[418974843,1774702234875,-150.0,0.00013973,2]
[418974844,1774702234884,-983.79,0.00013998,2]
[418974845,1774702234894,-201.325442,0.00014,2]
[418974846,1774702234904,-520.0,0.00014,2]
[418974847,1774702234914,-500.0,0.00014004,2]
[418974848,1774702234924,-500.0,0.00014012,2]
[418974849,1774702234934,-1338.95124532,0.00014019,2]
[418974850,1774702234943,-1741.167231,0.00014031,2]
[418974851,1774702234952,-1211.957326,0.00014031,2]
[418974852,1774702234961,-7826.274499,0.00014042,2]
[418974853,1774702234971,-796.97,0.00014045,2]
[418974854,1774702234981,-500.0,0.00014059,2]
[418974855,1774702234991,-500.0,0.00014114,2]
[418974856,1774702235000,-500.67594574,0.00014121,2]
[418974857,1774702235009,-588.47473116,0.00014121,2]
[418974858,1774702235019,-500.0,0.00014121,2]
[418974859,1774702235028,-1000.0,0.00014121,2]
[418974860,1774702235037,-500.0,0.00014121,2]
[418974861,1774702235046,-1000.0,0.00014121,2]
[418974862,1774702235057,-1000.0,0.00014121,2]
[418974863,1774702235066,-504.90098881,0.00014121,2]
[418974864,1774702235075,-1000.0,0.00014121,2]
[418974865,1774702235085,-500.0,0.00014136,2]
[418974866,1774702235094,-19238.880016,0.00014137,2]
[418974867,1774702235103,-500.0,0.00014144,2]
[418974868,1774702235114,-500.0,0.00014169,2]
[418974869,1774702235125,-339.474488,0.00014201,7]
[418974870,1774702235134,-577.614691,0.00014201,2]
[418974871,1774702235144,-165.965305,0.00014201,7]
[418974872,1774702235153,-576.848742,0.00014201,2]
[418974873,1774702235163,-2971.677357,0.00014201,2]
[418974874,1774702235172,-861.984891,0.00014201,2]
[418974875,1774702235182,-2000.0,0.00014214,2]
[418974876,1774702235192,-862.94343,0.00014214,2]
[418974877,1774702235201,-500.0,0.00014224,2]
[418974878,1774702235210,-408.99847685,0.00014238,2]
[418974879,1774702235219,-150.0,0.00014247,2]
[418974880,1774702235228,-150.0,0.00014247,2]
[418974881,1774702235238,-150.0,0.00014247,2]
[418974882,1774702235247,-500.0,0.00014279,2]
[418974883,1774702235257,-500.0,0.00014286,2]
[418974884,1774702235266,-869.38,0.0001429,2]
[418974885,1774702235275,-819.77,0.00014293,2]
[418974886,1774702235285,-255.0,0.00014297,2]
[418974887,1774702235295,-420.0,0.00014302,2]
[418974888,1774702235305,-5000.0,0.00014308,2]
[418974889,1774702235314,-2541.44376132,0.00014308,2]
[418974890,1774702235323,-250.0,0.00014308,2]
[418974891,1774702235332,-400.86393523,0.00014317,2]
[418974892,1774702235342,-1680.0,0.00014317,2]
[418974893,1774702235351,-2512.33133398,0.00014318,2]
[418974894,1774702235361,-500.0,0.00014318,2]
[418974895,1774702235370,-500.0,0.00014318,2]
[418974896,1774702235379,-500.0,0.00014318,2]
[418974897,1774702235389,-500.0,0.00014318,2]
[418974898,1774702235398,-2500.0,0.00014318,2]
[418974899,1774702235407,-2500.0,0.00014318,2]
[418974900,1774702235416,-2500.0,0.00014318,2]
[418974901,1774702235427,-2500.0,0.00014318,2]
[418974902,1774702235436,-502.98943545,0.00014318,2]
[418974903,1774702235445,-300.0,0.00014318,2]
[418974904,1774702235455,-300.0,0.00014318,2]
[418974905,1774702235464,-300.0,0.00014318,2]
[418974906,1774702235474,-300.0,0.00014318,2]
[418974907,1774702235483,-302.99736918,0.00014318,2]
[418974908,1774702235493,-600.0,0.00014318,2]
[418974909,1774702235502,-600.0,0.00014318,2]
[418974910,1774702235512,-600.0,0.00014318,2]
[418974911,1774702235521,-600.0,0.00014318,2]
[418974912,1774702235530,-606.30030691,0.00014318,2]
[418974913,1774702235539,-300.0,0.00014318,2]
[418974914,1774702235548,-796.97,0.00014319,2]
[418974915,1774702235557,-1338.95124532,0.00014329,2]
[418974916,1774702235567,-500.0,0.00014334,2]
[418974917,1774702235576,-500.0,0.00014389,2]
[418974918,1774702235586,-1570.0,0.000144,2]
[418974919,1774702235595,-620.0,0.000144,2]
[418974920,1774702235605,-164.72,0.000144,2]
[418974921,1774702235614,-1045.0,0.00014491,2]
[418974922,1774702235623,-621.0,0.00014491,2]
[418974923,1774702235632,-924.0,0.00014491,2]
[418974924,1774702235642,-1216.0,0.00014491,2]
[418974925,1774702235651,-704.542,0.00014491,2]
[418974926,1774702235660,-2468.0,0.00014491,2]
[418974927,1774702235670,-500.0,0.0001456,2]
[418974928,1774702235679,-796.97,0.00014593,2]
[418974929,1774702235688,-1338.95124532,0.00014638,2]
[418974930,1774702235697,-408.99847685,0.00014654,2]
[418974931,1774702235707,-360.12764122,0.00014654,2]
[418974932,1774702235716,-598.58411617,0.00014668,2]
[418974933,1774702235725,-500.0,0.00014668,2]
[418974934,1774702235735,-668.60618864,0.00014668,2]
[418974935,1774702235743,-282.48019824,0.00014668,2]
[418974936,1774702235752,-3052.0,0.00014679,5]
[418974937,1774702235762,-2433.0,0.00014679,5]
[418974938,1774702235771,-161.0,0.0001472,2]
[418974939,1774702235780,-161.0,0.0001472,2]
[418974940,1774702235789,-1570.0,0.0001472,2]
[418974941,1774702235798,-2807.0,0.0001472,2]
[418974942,1774702235807,-2807.0,0.0001472,2]
[418974943,1774702235816,-164.72,0.00014833,2]
[418974944,1774702235825,-500.0,0.00014834,2]
[418974945,1774702235835,-796.97,0.00014867,2]
[418974946,1774702235844,-197.2193,0.000149,2]
[418974947,1774702235854,-1338.95124532,0.00014948,2]
[418974948,1774702235862,-160.0,0.00015,2]
[418974949,1774702235872,-959.64475997,0.00015,2]
[418974950,1774702235881,-160.0,0.00015,2]
[418974951,1774702235890,-160.0,0.00015,2]
[418974952,1774702235900,-200.0,0.00015,2]
[418974953,1774702235909,-195.0,0.00015,2]
[418974954,1774702235918,-200.0,0.00015,2]
[418974955,1774702235927,-1570.0,0.0001504,2]
[418974956,1774702235936,-161.0,0.0001504,2]
[418974957,1774702235946,-1570.0,0.0001504,2]
[418974958,1774702235955,-2807.0,0.0001505,2]
[418974959,1774702235965,-408.99847685,0.00015069,2]
[418974960,1774702235974,-583.72695629,0.00015108,2]
[418974961,1774702235986,-200.0,0.00015123,2]
[418974962,1774702235995,-796.97,0.00015141,2]
[418974963,1774702236005,-200.0,0.00015243,2]
[418974964,1774702236015,-200.32,0.00015257,2]
[418974965,1774702236024,-1338.95124532,0.00015257,2]
[418974966,1774702236034,-164.72,0.00015265,2]
[418974967,1774702236043,-161.0,0.0001536,2]
[418974968,1774702236052,-2807.0,0.0001536,2]
[418974969,1774702236061,-2137.03364115,0.00015406,30]
[418974970,1774702236071,-796.98663931,0.00015415,2]
[418974971,1774702236081,-408.99847685,0.00015485,2]
[418974972,1774702236091,-433.0,0.00015497,2]
[418974973,1774702236101,-4000.0,0.00015507,2]
[418974974,1774702236111,-1338.95124532,0.00015567,2]
[418974975,1774702236121,-154.3,0.00015598,2]
[418974976,1774702236131,-4653.49,0.000156,2]
[418974977,1774702236141,-3251.67,0.000156,2]
[418974978,1774702236150,-4102.47,0.000156,2]
[418974979,1774702236159,-221.41374285,0.00015668,2]
[418974980,1774702236168,-200.3,0.00015668,2]
[418974981,1774702236177,-1015.15435603,0.0001568,2]
[418974982,1774702236187,-2807.0,0.0001568,2]
[418974983,1774702236197,-2807.0,0.0001568,2]
[418974984,1774702236206,-2807.0,0.0001568,2]
[418974985,1774702236215,-1570.0,0.0001568,2]
[418974986,1774702236225,-150.0,0.00015739,2]
[418974987,1774702236234,-2351.0,0.00015749,2]
[418974988,1774702236243,-1557.0753,0.00015773,2]
[418974989,1774702236253,-1000.0,0.00015791,2]
[418974990,1774702236262,-200.0,0.00015792,2]
[418974991,1774702236271,-2000.0,0.00015793,2]
[418974992,1774702236281,-150.0,0.00015803,2]
[418974993,1774702236291,-150.0,0.0001581,2]
[418974994,1774702236300,-200.0,0.00015819,2]
[418974995,1774702236309,-1039.94150256,0.00015836,2]
[418974996,1774702236318,-2503.47935232,0.0001584,2]
[418974997,1774702236327,-200.0,0.00015842,2]
[418974998,1774702236336,-500.0,0.00015872,2]
[418974999,1774702236345,-500.0,0.00015872,2]
[418975000,1774702236354,-500.0,0.00015872,2]
[418975001,1774702236363,-500.0,0.00015872,2]
[418975002,1774702236372,-500.0,0.00015872,2]
[418975003,1774702236381,-500.0,0.00015872,2]
[418975004,1774702236390,-500.0,0.00015872,2]
[418975005,1774702236400,-500.0,0.00015872,2]
[418975006,1774702236409,-500.0,0.00015872,2]
[418975007,1774702236419,-500.0,0.00015872,2]
[418975008,1774702236428,-353.45675013,0.00015873,2]
[418975009,1774702236438,-281.0056123,0.00015873,2]
[418975010,1774702236448,-389.39669243,0.00015873,2]
[418975011,1774702236457,-500.0,0.00015873,2]
[418975012,1774702236466,-500.42331564,0.00015873,2]
[418975013,1774702236476,-500.0,0.00015873,2]
[418975014,1774702236485,-500.0,0.00015873,2]
[418975015,1774702236494,-500.0,0.00015873,2]
[418975016,1774702236503,-749799.26026278,0.00015873,2]
[418975017,1774702236854,-118169.27658868,0.00015873,2]
[418975018,1774702236866,-185161.50359574,0.00015873,2]
[418975019,1774702236880,-29830.30223503,0.00015873,2]
[418975020,1774702236897,-2666.33773602,0.00015873,2]
[418975021,1774702236919,-1407.06176575,0.00015873,2]
[418975024,1774702237778,-5870.50171799,0.00013681,2]
[418975025,1774702237788,-539.11579501,0.00015599,2]
[418975026,1774702237798,-500.0,0.00015599,2]
[418975027,1774702237808,-310.62448294,0.00015599,2]
[418975028,1774702237818,-167.85731328,0.00015599,2]
[418975029,1774702237827,-500.0,0.00015599,2]
[418975030,1774702237835,-567.55228356,0.00015599,2]
[418975031,1774702237845,-500.0,0.00015599,2]
[418975032,1774702237855,-500.0,0.00015599,2]
[418975033,1774702237864,-500.0,0.00015599,2]
[418975034,1774702237873,-500.0,0.00015599,2]
[418975035,1774702237882,-177.62293712,0.00015599,2]
[418975036,1774702237891,-1412966.257816,0.00015873,2]
[418975037,1774702237901,-1338.95124532,0.00015876,2]
[418975038,1774702237910,-221.42,0.00015882,2]
[418975039,1774702237920,-2000.0,0.0001589,2]
[418975040,1774702237929,-4000.0,0.00015895,2]
[418975041,1774702237938,-271.48238672,0.000159,2]
[418975042,1774702237948,-507.03502793,0.000159,2]
[418975043,1774702237957,-2406.76,0.000159,2]
[418975044,1774702237967,-408.99847685,0.000159,2]
[418975045,1774702237976,-153.81880462,0.000159,2]
[418975046,1774702237985,-360.12764122,0.000159,2]
[418975047,1774702237995,-3849.0,0.000159,2]
[418975048,1774702238004,-1000.0,0.00015901,2]
[418975049,1774702238014,-200.0,0.00015923,2]
[418975050,1774702238024,-3712.1973866,0.00015976,2]
[418975051,1774702238033,-854656.1737891,0.00015976,2]
[418975053,1774702238043,-238815.040453,0.00015976,2]
[418975054,1774702238053,-21094.1511446,0.00015976,2]
[418975055,1774702238063,-151.0,0.00015976,2]
[418975056,1774702238072,-151.0,0.00015976,2]
[418975057,1774702238082,-151.0,0.00015976,2]
[418975059,1774702238092,-151.0,0.00015976,2]
[418975060,1774702238102,-151.0,0.00015976,2]
[418975062,1774702238112,-406.762198,0.00015976,2]
[418975064,1774702238121,-406.762198,0.00015976,2]
[418975066,1774702238130,-406.762198,0.00015976,2]
[418975068,1774702238139,-406.762198,0.00015976,2]
[418975070,1774702238149,-151.0,0.00015976,2]
[418975072,1774702238159,-151.0,0.00015976,2]
[418975074,1774702238169,-249.669586,0.00015976,2]
[418975076,1774702238178,-249.669586,0.00015976,2]
[418975078,1774702238188,-249.669586,0.00015976,2]
[418975080,1774702238197,-249.669586,0.00015976,2]
[418975082,1774702238207,-606.320897,0.00015976,2]
[418975085,1774702238216,-606.320897,0.00015976,2]
[418975087,1774702238226,-606.320897,0.00015976,2]
[418975088,1774702238236,-151.0,0.00015976,2]
[418975091,1774702238247,-606.320897,0.00015976,2]
[418975093,1774702238256,-151.0,0.00015976,2]
[418975095,1774702238265,-151.0,0.00015976,2]
[418975096,1774702238274,-151.0,0.00015976,2]
[418975098,1774702238284,-151.0,0.00015976,2]
[418975100,1774702238294,-151.0,0.00015997,2]
[418975102,1774702238303,-151.0,0.00015997,2]
[418975104,1774702238312,-151.0,0.00015997,2]
[418975106,1774702238322,-151.0,0.00015997,2]
[418975109,1774702238332,-155.0,0.00015999,2]
[418975111,1774702238342,-76585.4126392,0.00015999,7]
[418975112,1774702238351,-1151744.85126562,0.00016,2]
[418975114,1774702238361,-220625.09386697,0.00016,2]
[418975118,1774702238384,-299.17987,0.00016,2]
[418975120,1774702238395,-2472.85821636,0.00016,2]
[418975124,1774702239789,-151.0,0.00015976,2]
[418975125,1774702239800,-1242.20373301,0.00016,2]
[418975126,1774702240071,-621.86898814,0.00016,2]
[418975127,1774702240083,-341.77167062,0.00016,2]
[418975128,1774702240099,-85761.18595655,0.00016,2]
[418975129,1774702240109,-1075216.36964501,0.00016,2]
[418975130,1774702240128,-860037.76444621,0.00016,2]
[418975131,1774702240140,-1239295.13568369,0.00016,2]
[418975132,1774702240150,-365178.36790705,0.00016,2]
[418975133,1774702240160,-556837.09399477,0.00016,2]
[418975134,1774702240171,-2164644.32366232,0.00016,2]
[418975135,1774702240195,-568.9,0.00016,2]
[418975157,1774702242962,-479.97190949,0.00013956,2]
[418975158,1774702243021,-5390.5298085,0.00013956,2]
[418975159,1774702243031,-6012.0,0.00014491,2]
[418975160,1774702243042,-186074.40263388,0.00016,2]
[418975169,1774702245783,-832200.0,0.00016,2]
[418975176,1774702562804,-250.0,0.00013,2]
[418975178,1774702773089,-974407.50210317,0.00047078,120]
[418975179,1774702773119,-1000000.0,0.00047078,120]
[418975180,1774702773145,-1000000.0,0.00047078,120]
[418975181,1774702773169,-180.2927388,0.00047078,30]
[418975182,1774702773196,-167.58023262,0.00047078,30]
[418975183,1774702773222,-223.93375169,0.00047078,30]
[418975184,1774702773251,-1000000.0,0.00047078,120]
[418975185,1774702773280,-1000000.0,0.00047078,120]
[418975186,1774702773307,-1000000.0,0.00047078,120]
[418975187,1774702773336,-1000000.0,0.00047078,120]
[418975188,1774702773364,-925000.0,0.00047078,120]
[418975189,1774702773388,-180.2927388,0.00047078,30]
[418975190,1774702773414,-180.2927388,0.00047078,30]
[418975191,1774702773442,-1000000.0,0.00047078,30]
[418975192,1774702773472,-99660.10569612,0.00047078,30]
[418975193,1774702777838,-900339.89430388,0.00047078,30]
[418975194,1774702777867,-1000000.0,0.00047078,30]
[418975195,1774702777894,-1000000.0,0.00047078,30]
[418975196,1774702777921,-1000000.0,0.00047078,30]
[418975197,1774702777949,-1000000.0,0.00047078,30]
[418975198,1774702777975,-1000000.0,0.00047078,30]
[418975199,1774702778002,-900245.0,0.00047078,30]
[418975200,1774702778029,-1000000.0,0.00047078,30]
[418975201,1774702778056,-1000000.0,0.00047078,30]
[418975202,1774702778082,-199415.10569612,0.00047078,30]
[418975203,1774702781953,-800584.89430388,0.00047078,30]
[418975204,1774702781979,-500.0,0.00047078,120]
[418975205,1774702782008,-1000000.0,0.00047078,60]
[418975206,1774702782035,-1000000.0,0.00047078,60]
[418975207,1774702782064,-1000000.0,0.00047078,60]
[418975208,1774702782092,-1000000.0,0.00047078,60]
[418975209,1774702782120,-1000000.0,0.00047078,60]
[418975210,1774702782147,-1000000.0,0.00047078,60]
[418975211,1774702782174,-1000000.0,0.00047078,60]
[418975212,1774702782202,-100000.0,0.00047078,30]
[418975213,1774702782230,-1000000.0,0.00047078,60]
[418975214,1774702782257,-98915.10569612,0.00047078,60]
[418975215,1774702785325,-901084.89430388,0.00047078,60]
[418975216,1774702785355,-1000000.0,0.00047078,60]
[418975217,1774702785382,-1000000.0,0.00047078,60]
[418975218,1774702785408,-1000000.0,0.00047078,60]
[418975219,1774702785433,-100000.0,0.00047078,30]
[418975220,1774702785459,-89829.0,0.00047078,60]
[418975221,1774702785484,-219.02014018,0.00047078,120]
[418975222,1774702785509,-100000.0,0.00047078,30]
[418975223,1774702785534,-2497.48553785,0.00047078,30]
[418975224,1774702785558,-150.0,0.00047078,30]
[418975225,1774702785584,-100000.0,0.00047078,30]
[418975226,1774702785610,-4083.99148532,0.00047078,120]
[418975227,1774702785635,-214.1,0.00047078,30]
[418975228,1774702785660,-527.38400948,0.00047078,120]
[418975229,1774702785684,-100000.0,0.00047078,30]
[418975230,1774702785708,-327.16,0.00047078,120]
[418975231,1774702785732,-100000.0,0.00047078,30]
[418975232,1774702785757,-39386.22981392,0.00047078,30]
[418975233,1774702785781,-162.2542,0.00047078,120]
[418975234,1774702785806,-27144.01076698,0.00047078,30]
[418975235,1774702785832,-60318.90317335,0.00047078,60]
[418975236,1774702785857,-57041.85892899,0.00047078,30]
[418975237,1774702785881,-5000.0,0.00047078,38]
[418975238,1774702785906,-2000.0,0.00047078,120]
[418975239,1774702785932,-3000.0,0.00047078,120]
[418975240,1774702785959,-2000.0,0.00047078,120]
[418975241,1774702785983,-2000.0,0.00047078,120]
[418975242,1774702786009,-2000.0,0.00047078,120]
[418975243,1774702786035,-2000.0,0.00047078,120]
[418975244,1774702786060,-2000.0,0.00047078,120]
[418975245,1774702786086,-2000.0,0.00047078,120]
[418975246,1774702786263,-2000.0,0.00047078,120]
[418975247,1774702786289,-2000.0,0.00047078,120]
[418975248,1774702786315,-2000.0,0.00047078,120]
[418975249,1774702786342,-2000.0,0.00047078,120]
[418975250,1774702786368,-2000.0,0.00047078,120]
[418975251,1774702786394,-2000.0,0.00047078,120]
[418975252,1774702786419,-2000.0,0.00047078,120]
[418975253,1774702786444,-394.56000001,0.00047078,120]
[418975254,1774702786468,-3000.22640292,0.00047078,30]
[418975255,1774702786493,-2061.0,0.00047078,120]
[418975256,1774702786518,-1669064.19,0.00047078,94]
[418975257,1774702786543,-154.77,0.00047078,30]
[418975258,1774702786568,-250.0,0.00047078,120]
[418975259,1774702786593,-800.0,0.00047078,120]
[418975260,1774702786618,-276.47665296,0.00047078,120]
[418975261,1774702786642,-186.08,0.00047078,30]
[418975262,1774702786667,-60000.0,0.00047078,30]
[418975263,1774702786691,-68714.6323,0.00047078,30]
[418975264,1774702786717,-566.09,0.00047078,30]
[418975265,1774702786743,-1000.0,0.00047078,120]
[418975266,1774702786769,-1000.0,0.00047078,120]
[418975267,1774702786795,-1000.0,0.00047078,120]
[418975268,1774702786822,-640.13020865,0.00047078,120]
[418975269,1774702786847,-635.83,0.00047078,30]
[418975270,1774702786872,-461.12842935,0.00047078,120]
[418975271,1774702786899,-983.13044183,0.00047078,120]
[418975272,1774702786927,-36421.75401564,0.00047078,120]
[418975273,1774702786953,-200.0,0.00047078,120]
[418975274,1774702786977,-25000.0,0.00047078,30]
[418975275,1774702787002,-20000.0,0.00047078,30]
[418975276,1774702787027,-20000.0,0.00047078,30]
[418975277,1774702787051,-25000.0,0.00047078,30]
[418975278,1774702787076,-2129.31026472,0.00047078,30]
[418975279,1774702787101,-20000.0,0.00047078,30]
[418975280,1774702787126,-20000.0,0.00047078,30]
[418975281,1774702787150,-25000.0,0.00047078,30]
[418975282,1774702787175,-20000.0,0.00047078,30]
[418975283,1774702787200,-25000.0,0.00047078,30]
[418975284,1774702787225,-10554.74680534,0.00047078,30]
[418975285,1774702787250,-25000.0,0.00047078,30]
[418975286,1774702787275,-25000.0,0.00047078,30]
[418975287,1774702788640,171.27750448,0.00012939,2]
[418975288,1774702799938,702.78,0.00012677,2]
[418975289,1774702862304,972.94,0.00012172,2]
[418975290,1774702923951,494.43,0.00011701,2]
[418975291,1774703085621,-1640000.0,0.00047081,60]
[418975292,1774703085652,-2000000.0,0.00047081,60]
[418975293,1774703085678,-500.0,0.00047081,120]
[418975294,1774703085704,-150.0,0.00047081,30]
[418975295,1774703085729,-214.1,0.00047081,30]
[418975296,1774703085755,-5000.0,0.00047081,120]
[418975297,1774703085782,-217.64622412,0.00047081,120]
[418975298,1774703085807,-151.0,0.00047081,120]
[418975299,1774703085833,-5000.0,0.00047081,120]
[418975300,1774703085860,-156.587,0.00047081,120]
[418975301,1774703085886,-5000.0,0.00047081,120]
[418975302,1774703085912,-162.380719,0.00047081,120]
[418975303,1774703085937,-168.3888056,0.00047081,120]
[418975304,1774703085963,-500.0,0.00047081,120]
[418975305,1774703085990,-6888.0,0.00047081,120]
[418975306,1774703086016,-174.61919141,0.00047081,120]
[418975307,1774703086045,-500.0,0.00047081,120]
[418975308,1774703086070,-172.10186372,0.00047081,120]
[418975309,1774703086097,-181.08010149,0.00047081,120]
[418975310,1774703086125,-7142.856,0.00047081,120]
[418975311,1774703086152,-500.0,0.00047081,120]
[418975312,1774703086179,-181.08010149,0.00047081,120]
[418975313,1774703086206,-7407.141672,0.00047081,120]
[418975314,1774703086232,-500.0,0.00047081,120]
[418975315,1774703086258,-500.0,0.00047081,120]
[418975316,1774703086284,-7681.20591386,0.00047081,120]
[418975317,1774703086311,-7965.41053268,0.00047081,120]
[418975318,1774703086336,-500.0,0.00047081,120]
[418975319,1774703086363,-8260.13072239,0.00047081,120]
[418975320,1774703086389,-500.0,0.00047081,120]
[418975321,1774703086415,-8565.75555911,0.00047081,120]
[418975322,1774703086440,-500.0,0.00047081,120]
[418975323,1774703086467,-500.0,0.00047081,120]
[418975324,1774703086494,-500.0,0.00047081,120]
[418975325,1774703086522,-8882.6885148,0.00047081,120]
[418975326,1774703086548,-500.0,0.00047081,120]
[418975327,1774703086574,-500.0,0.00047081,120]
[418975328,1774703086602,-500.0,0.00047081,120]
[418975329,1774703086629,-500.0,0.00047081,120]
[418975330,1774703086655,-500.0,0.00047081,120]
[418975331,1774703086682,-500.0,0.00047081,120]
[418975332,1774703086708,-203.55275213,0.00047081,120]
[418975333,1774703086735,-500.0,0.00047081,120]
[418975334,1774703086761,-500.0,0.00047081,120]
[418975335,1774703086788,-500.0,0.00047081,120]
[418975336,1774703086814,-500.0,0.00047081,120]
[418975337,1774703086840,-500.0,0.00047081,120]
[418975338,1774703086867,-500.0,0.00047081,120]
[418975339,1774703086893,-500.0,0.00047081,120]
[418975340,1774703086918,-500.0,0.00047081,120]
[418975341,1774703086944,-500.0,0.00047081,120]
[418975342,1774703086969,-592.38264573,0.00047081,120]
[418975343,1774703086995,-500.0,0.00047081,120]
[418975344,1774703087021,-500.0,0.00047081,120]
[418975345,1774703087048,-500.0,0.00047081,120]
[418975346,1774703087076,-500.0,0.00047081,120]
[418975347,1774703087103,-500.0,0.00047081,120]
[418975348,1774703087129,-500.0,0.00047081,120]
[418975349,1774703087155,-500.0,0.00047081,120]
[418975350,1774703087184,-500.0,0.00047081,120]
[418975351,1774703087210,-500.0,0.00047081,120]
[418975352,1774703087236,-500.0,0.00047081,120]
[418975353,1774703087262,-160.0,0.00047081,120]
[418975354,1774703087288,-500.0,0.00047081,120]
[418975355,1774703087316,-500.0,0.00047081,120]
[418975356,1774703087343,-500.0,0.00047081,120]
[418975357,1774703087476,-160.0,0.00047081,120]
[418975358,1774703087503,-500.0,0.00047081,120]
[418975359,1774703087531,-500.0,0.00047081,120]
[418975360,1774703087557,-500.0,0.00047081,120]
[418975361,1774703087586,-160.0,0.00047081,120]
[418975362,1774703087615,-500.0,0.00047081,120]
[418975363,1774703087642,-500.0,0.00047081,120]
[418975364,1774703087671,-500.0,0.00047081,120]
[418975365,1774703087698,-500.0,0.00047081,120]
[418975366,1774703087725,-500.0,0.00047081,120]
[418975367,1774703087752,-500.0,0.00047081,120]
[418975368,1774703087779,-500.0,0.00047081,120]
[418975369,1774703087805,-500.0,0.00047081,120]
[418975370,1774703087832,-500.0,0.00047081,120]
[418975371,1774703087858,-500.0,0.00047081,120]
[418975372,1774703087884,-500.0,0.00047081,120]
[418975373,1774703087911,-500.0,0.00047081,120]
[418975374,1774703087938,-500.0,0.00047081,120]
[418975375,1774703087964,-250.0,0.00047081,120]
[418975376,1774703087991,-500.0,0.00047081,120]
[418975377,1774703088019,-500.0,0.00047081,120]
[418975378,1774703088045,-250.0,0.00047081,120]
[418975379,1774703088072,-500.0,0.00047081,120]
[418975380,1774703088101,-500.0,0.00047081,120]
[418975381,1774703088127,-250.0,0.00047081,120]
[418975382,1774703088155,-500.0,0.00047081,120]